Cogmind - Beta 15 @@@ ROGUE MODE // 2025.06.20 @ 18:46:01 Player: satan5 Result: Destroyed by G-67 Veteran with Field Laser Performance ------------- Evolutions (6) 3000 Regions Visited (20) 4000 Robots Destroyed (179) 895 Value Destroyed (7240) 7240 Prototype IDs (35) 700 Alien Tech Used (1) 200 Bonus (6414) 6414 TOTAL SCORE: 22449 Bonus ------- High Alert Combat Kills 377 Follower Combat Kills 2282 Entered Garrisons 600 Used RIF Installer 2000 Network Hubs Disabled 200 Met Data Miner 300 Built Enhanced Grunts 300 A7 Reached Mainframe 300 Met R17 at Cetus 500 Friendly Fire -445 Cogmind --------- Core Integrity 0/1150 Matter 300/300 Energy 71/100 System Corruption 23% Temperature Cool (63) Movement Core (50) Location -4/Factory Parts ------- > --- POWER (2) -------- (None) > --- PROPULSION (6) --- (None) > --- UTILITY (9) ------ Advanced Signal Interpreter > --- WEAPON (3) ------- (None) > --- INVENTORY (5) ---- Advanced Matter Compressor (400) High-powered Tractor Beam Smartbomb Launcher Improved Remote Datajack Peak State ------------ > --- POWER ------------ Enhanced Nuclear Core Heavy Antimatter Reactor > --- PROPULSION ------- Cooled Aerolev Unit Combat Airjet Combat Gravmag System Combat Gravmag System Antigrav Array > --- UTILITY ---------- Large Storage Unit Improved Trap Scanner Advanced Sensor Array Advanced Signal Interpreter Improved Targeting Computer Core Analyzer Improved Weapon Cycler Hacking Suite Relay Coupler [NC] > --- WEAPON ----------- Advanced Variable Charge Gun Enhanced Autogun Power Maul > --- INVENTORY -------- Improved Cooling System Advanced Matter Compressor Improved Cloaking Device EM Disruption Field Remote Shield Relay Coupler [Hunter] Improved EM Pulse Cannon Smartbomb Launcher Remote Datajack Improved Remote Datajack [Rating: 105] Favorites ----------- Power Enhanced Nuclear Core Engine Improved Ion Engine Power Core Enhanced Nuclear Core Reactor Heavy Antimatter Reactor Propulsion Cooled Aerolev Unit Leg Aluminum Leg Hover Unit Cooled Aerolev Unit Utility Large Storage Unit Device Improved Sensor Array Storage Large Storage Unit Processor Advanced Signal Interpreter Hackware Hacking Suite Protection Improved Medium Armor Plating Weapon Antimatter Cannon Energy Gun Medium Laser Energy Cannon Improved EM Pulse Cannon Ballistic Gun Enhanced Autogun Ballistic Cannon Antimatter Cannon Launcher Heavy Missile Launcher Special Weapon Improved Remote Datajack Impact Weapon Power Maul Slashing Weapon Axe Build | -11 -10 -10 -9 -8 -8 -8 -8 -7 -7 -7 -7 -6 -6 -6 -5 -5 -5 -5 -5 -4 ------- Run | Yrd Mat Min Mat Mat Gar Mat Gar Fac Low Low Dat Pro Fac Gar Fac Ext Cet Arc Hub Fac Slots Evolved 12 | . . . 2 2 . . . 2 . . . . 2 . 2 . . . . 2 Power 1 | . . . . . . . . . . . . . . . 1 . . . . . Propulsion 3 | . . . 2 . . . . 1 . . . . . . . . . . . . Utility 7 | . . . . 2 . . . 1 . . . . 2 . . . . . . 2 Weapon 1 | . . . . . . . . . . . . . . . 1 . . . . . Parts Attached 139 | 8 7 1 14 1 10 10 9 22 2 . . . 8 12 9 9 2 . 3 12 Power 19 | 2 2 1 2 1 1 1 1 4 . . . . . . 2 1 . . . 1 Engine 9 | 2 1 . 1 1 1 1 . 1 . . . . . . 1 . . . . . Core 9 | . 1 1 1 . . . 1 3 . . . . . . 1 1 . . . . Reactor 1 | . . . . . . . . . . . . . . . . . . . . 1 Propulsion 45 | 2 4 . 8 . 4 4 4 8 1 . . . 4 2 1 1 . . . 2 Treads . | . . . . . . . . . . . . . . . . . . . . . Leg 22 | 2 4 . 8 . 4 4 . . . . . . . . . . . . . . Wheel . | . . . . . . . . . . . . . . . . . . . . . Hover 23 | . . . . . . . 4 8 1 . . . 4 2 1 1 . . . 2 Flight . | . . . . . . . . . . . . . . . . . . . . . Utility 38 | 2 1 . 1 . 2 2 1 4 . . . . 2 6 3 5 . . 2 7 Device 13 | 1 . . 1 . . . 1 1 . . . . 1 2 1 2 . . 2 1 Storage 5 | 1 1 . . . . 1 . . . . . . . . . 1 . . . 1 Processor 7 | . . . . . . 1 . 1 . . . . . . 1 . . . . 4 Hackware 12 | . . . . . 2 . . 1 . . . . 1 4 1 2 . . . 1 Protection 1 | . . . . . . . . 1 . . . . . . . . . . . . Artifact . | . . . . . . . . . . . . . . . . . . . . . Weapon 37 | 2 . . 3 . 3 3 3 6 1 . . . 2 4 3 2 2 . 1 2 Energy Gun 8 | 1 . . 2 . . . . 1 . . . . . 1 . 1 1 . . 1 Energy Cannon 5 | . . . . . 1 . . . . . . . . 2 . . 1 . 1 . Ballistic Gun 14 | 1 . . 1 . 1 3 2 3 . . . . 2 . 1 . . . . . Ballistic Cannon 2 | . . . . . . . . . . . . . . . 2 . . . . . Launcher 3 | . . . . . . . 1 1 1 . . . . . . . . . . . Special Weapon 2 | . . . . . . . . . . . . . . 1 . 1 . . . . Impact Weapon 1 | . . . . . . . . 1 . . . . . . . . . . . . Slashing Weapon 2 | . . . . . 1 . . . . . . . . . . . . . . 1 Piercing Weapon . | . . . . . . . . . . . . . . . . . . . . . Special Melee Weapon . | . . . . . . . . . . . . . . . . . . . . . Unidentified Prototypes 15 | . . . . . . . . 6 1 . . . 1 . 3 1 1 . 1 1 Parts Lost 69 | . 2 . 7 . 8 2 6 10 . . . . 2 3 . 1 1 . 8 19 Power 10 | . 1 . 3 . 1 . 1 . . . . . . . . 1 . . 1 2 Propulsion 29 | . 1 . 1 . 4 1 3 7 . . . . 2 2 . . . . 3 5 Utility 14 | . . . 1 . . . 1 . . . . . . 1 . . . . 1 10 Weapon 16 | . . . 2 . 3 1 1 3 . . . . . . . . 1 . 3 2 Highest Loss Streak 16 | . 2 . 5 . 4 1 5 7 . . . . 2 2 . 1 1 . 4 16 To Critical Strikes 1 | . . . . . . . . . . . . . . . . . . . . 1 Average Backups 13 | 1 7 14 13 14 14 14 13 13 14 14 15 15 14 14 14 14 15 15 14 7 Power 1 | . 1 2 . . . 1 . 1 3 2 2 2 2 2 1 . . . . . Propulsion 3 | . 3 7 7 8 7 7 7 3 . . . . 1 . 1 1 2 2 1 . Utility 3 | . . 1 1 1 . 1 . 2 4 4 5 5 3 5 5 5 6 6 6 3 Weapon 5 | . 2 3 3 4 4 5 4 5 6 6 7 7 6 6 6 6 6 6 6 2 Tool/Special . | . . . . . . . . . . . . . . . . . . . . . Unused Backups 31 | . 1 2 3 7 . 2 . 2 1 2 . . 4 1 . 2 . . . 4 Power 3 | . . . . . . . . 1 . 1 . . 1 . . . . . . . Propulsion 12 | . 1 2 1 5 . . . 1 . . . . 1 . . 1 . . . . Utility 6 | . . . . 1 . . . . . . . . 1 1 . 1 . . . 2 Weapon 9 | . . . 2 1 . 2 . . 1 1 . . 1 . . . . . . 1 Tool/Special 1 | . . . . . . . . . . . . . . . . . . . . 1 Average Slot Usage (%) 94 | . 100 100 93 81 86 99 85 94 100 100 100 100 98 93 93 93 93 94 91 81 Engine 2 | . 11 . 6 9 8 9 4 . . . . . . . 1 . . . . . Core 6 | . 2 14 4 . . . 2 7 7 7 7 7 6 6 8 10 11 11 10 2 Leg 12 | . 28 28 42 36 34 35 15 . . . . . . . . . . . . . Hover 19 | . . . . . . . 12 37 38 42 42 42 36 35 27 27 27 27 26 23 Device 8 | . 14 14 5 9 9 5 1 6 7 7 7 7 11 4 11 7 5 5 6 11 Storage 7 | . 14 14 11 9 9 9 9 7 7 7 7 7 6 6 5 5 5 5 5 3 Processor 4 | . . . . . . 4 9 7 7 7 7 7 6 6 5 5 5 5 5 15 Hackware 12 | . . . . . 9 18 13 11 14 14 14 14 18 22 16 19 22 22 20 9 Energy Gun 4 | . 14 14 15 18 6 . . . . . . . . . . . 1 5 . 2 Ballistic Gun 7 | . 14 14 6 . 7 15 13 12 7 7 7 7 6 6 5 1 . . . 2 Ballistic Cannon 3 | . . . . . . . . . . . . . . . 10 11 11 11 10 . Impact Weapon 1 | . . . . . . . . 1 6 7 7 7 5 1 . . . . . 3 Peak Build Rating 105 | 9 12 14 24 25 27 36 35 48 50 51 51 51 69 81 99 100 99 99 102 105 Average Rating 55 | 5 9 12 20 22 22 30 28 41 47 50 51 51 61 69 96 97 97 99 96 89 On Entrance 48 | . 9 12 14 24 22 27 34 28 47 50 51 51 51 69 81 97 97 99 99 66 Naked Turns . | . . . . . . . . . . . . . . . . . . . . . Heaviest Build 66 | 15 30 30 38 38 34 36 40 35 39 35 35 35 36 42 60 62 66 62 64 60 Greatest Support 75 | 20 20 20 45 45 55 69 64 41 50 50 50 50 54 62 62 67 67 67 67 75 Greatest Overweight (x) 4 | 4 1 1 1 . . . 1 1 . . . . . . . . 1 . . 1 Average Overweight (x) . | . . 1 . . . . . . . . . . . . . . . . . . Largest Inventory Capacity 15 | 8 15 15 15 15 15 15 15 15 15 15 15 15 15 15 15 15 15 15 15 15 Average Capacity 14 | 7 10 15 15 15 15 15 15 15 15 15 15 15 15 15 15 15 15 15 15 10 Most Carried 15 | 2 14 15 15 15 15 15 15 15 15 15 15 15 15 15 15 15 15 15 15 13 Average Carried 13 | 1 7 14 13 14 14 14 13 13 14 14 15 15 14 14 14 14 15 15 14 8 Final Capacity 15 | 8 15 15 15 15 15 15 15 15 15 15 15 15 15 15 15 15 15 15 15 5 Final Carried 15 | 2 14 15 15 15 13 15 10 15 14 15 15 15 13 15 15 15 15 15 13 5 Class Distribution -------------------- 23% | Scavenger-Mutant 22% | Mutant 17% | Hacker-Mutant 12% | Hacker-Skirmisher 8% | Commander-Tank 4% | Hacker-Tank 3% | Bothacker-Sprinter Dominant Class ---------------- Mutant | -10/Materials Mutant | -10/Mines Scavenger-Mutant | -9/Materials Scavenger-Mutant | -8/Materials Scavenger-Mutant | -8/Garrison Scavenger-Mutant | -8/Materials Mutant | -8/Garrison Hacker-Mutant | -7/Factory Hacker-Mutant | -7/Lower Caves Hacker-Mutant | -7/Lower Caves Hacker-Mutant | -7/Data Miner Hacker-Mutant | -6/Proximity Caves Hacker-Mutant | -6/Factory Bothacker-Sprinter | -6/Garrison Hacker-Skirmisher | -5/Factory Hacker-Skirmisher | -5/Extension Hacker-Tank | -5/Cetus Commander-Tank | -5/Archives Hacker-Skirmisher | -5/Hub_04(d) Mutant | -4/Factory Resources | -11 -10 -10 -9 -8 -8 -8 -8 -7 -7 -7 -7 -6 -6 -6 -5 -5 -5 -5 -5 -4 ----------- Run | Yrd Mat Min Mat Mat Gar Mat Gar Fac Low Low Dat Pro Fac Gar Fac Ext Cet Arc Hub Fac Matter Collected 6270 | 221 307 6 204 . 81 488 65 864 117 35 . . 161 569 396 1394 328 51 684 299 Remotely . | . . . . . . . . . . . . . . . . . . . . . Salvage Created 7232 | 37 530 67 571 76 292 586 46 894 26 . . . 292 700 386 864 208 . 1047 610 Parts 347 | 6 30 3 36 6 13 51 7 32 3 . . . 6 36 17 25 7 . 48 21 Haulers Intercepted 18 | . 1 . 2 . . 1 . 1 . . . . 2 . 2 6 . . 3 . Recyclers Shooed 4 | 1 . . . . . . . . . . . . . . . 1 . . . 2 Parts Field Recycled . | . . . . . . . . . . . . . . . . . . . . . Retrieved Matter . | . . . . . . . . . . . . . . . . . . . . . Parts Self-Destructed . | . . . . . . . . . . . . . . . . . . . . . Prevented . | . . . . . . . . . . . . . . . . . . . . . Kills | -11 -10 -10 -9 -8 -8 -8 -8 -7 -7 -7 -7 -6 -6 -6 -5 -5 -5 -5 -5 -4 ------- Run | Yrd Mat Min Mat Mat Gar Mat Gar Fac Low Low Dat Pro Fac Gar Fac Ext Cet Arc Hub Fac Combat Hostiles Destroyed 107 | . 10 1 10 2 6 9 6 15 3 . . . 2 12 3 11 3 . 11 3 Melee 2 | . . . . . . . . 1 . . . . . . . . . . . 1 Guns 56 | . 10 . 10 2 4 9 . 12 . . . . 2 4 1 2 . . . . Cannons 26 | . . . . . 2 . . . . . . . . 4 2 9 3 . 6 . AOE 16 | . . . . . . . 6 2 3 . . . . 1 . . . . 2 2 Classes Destroyed 18 | 1 4 . 4 . . 3 1 2 . . . . . 3 . . . . . . Worker 9 | . . . 1 . . 1 . 1 . . . . . . . . . . 5 1 Builder 11 | . . . . . . 2 . 1 . . . . . . . 5 . . 2 1 Tunneler 4 | 2 . 1 1 . . . . . . . . . . . . . . . . . Hauler 18 | . 1 . 2 . . 1 . 1 . . . . 2 . 2 6 . . 3 . Recycler 8 | . . . . . . . . 3 . . . . . . 1 . . . 1 3 Operator 9 | . 1 . . . . . . 3 . . . . 1 . 2 1 . . 1 . Watcher 14 | . 3 . 2 . . . . 2 . . . . 1 1 2 . . . 2 1 Swarmer 22 | . . . 1 . . . 4 7 3 . . . 2 2 1 2 . . . . Saboteur 1 | . . . . . . . . . . . . . . 1 . . . . . . Grunt 34 | . 10 1 5 1 4 4 . 3 . . . . . 1 . 2 . . 3 . Brawler 2 | . . . . . . . . . . . . . . 1 . . . . 1 . Duelist 6 | . . . 1 . . . . . . . . . . 1 2 1 . . 1 . Sentry 20 | . . . 3 1 2 2 . 1 . . . . . 3 . 6 . . 2 . Specialist 4 | . . . . . . 2 . . . . . . . 2 . . . . . . Hunter 7 | . . . . . . . . . . . . . . 2 . . 2 . 3 . Programmer 5 | . . . . . . . 2 . . . . . . . . . . . . 3 Heavy 2 | . . . . . . 1 . . . . . . . . . . . . 1 . Cetus Guard 1 | . . . . . . . . . . . . . . . . . 1 . . . Assembled 4 | . . . . . . . . 4 . . . . . . . . . . . . Thug 2 | . . . . . . . . . . . . . . . . . 2 . . . Best Kill Streak 10 | 2 5 1 4 2 2 3 4 7 3 . . . 3 2 3 4 2 . 10 4 Combat Bots Only 7 | . 5 1 3 2 2 3 4 7 3 . . . 2 2 2 2 2 . 4 2 Max Kills in Single Turn 4 | 1 1 1 1 1 1 1 4 2 2 . . . 1 1 1 2 2 . 2 3 Gunslinging 1 | . . . . . . . . 1 . . . . . . . . . . . . Exploded 4 | . . . . . . . 4 2 2 . . . . 1 . . . . 1 2 Melee 1 | . . . . . . . . 1 . . . . . . . . . . . 1 Uniques/NPCs Destroyed . | . . . . . . . . . . . . . . . . . . . . . Combat | -11 -10 -10 -9 -8 -8 -8 -8 -7 -7 -7 -7 -6 -6 -6 -5 -5 -5 -5 -5 -4 -------- Run | Yrd Mat Min Mat Mat Gar Mat Gar Fac Low Low Dat Pro Fac Gar Fac Ext Cet Arc Hub Fac Hostile Shots Fired 729 | . 51 2 66 7 70 65 20 90 14 . . . 48 76 3 31 18 7 59 102 Missed 234 | . 10 1 13 1 27 17 6 30 9 . . . 18 36 1 15 3 4 21 22 Hits 495 | . 41 1 53 6 43 48 14 60 5 . . . 30 40 2 16 15 3 38 80 Melee 17 | . . . 7 . . . . . . . . . . . . . . . . 10 Projectile 478 | . 41 1 46 6 43 48 14 60 5 . . . 30 40 2 16 15 3 38 70 Critical Strikes 28 | . 1 . 2 2 2 2 . 2 . . . . . 4 . 1 2 . 4 6 Part Disruptions 2 | . . . . . . . 1 . . . . . . . . . 1 . . . Damage Taken 9803 | . 566 14 744 91 657 1105 462 844 66 . . . 414 593 28 295 342 59 1259 2264 Core 2365 | . 98 . 124 16 66 335 101 100 12 . . . 56 55 . 49 49 . 148 1156 Absorbed by Shields 300 | . . . . . . . . . . . . . . 129 . 31 122 18 . . Regen/Repaired (Parts) 433 | . . . . . . . . 112 . . . . . . 251 70 . . . . Core Remaining (%) 68 | 100 . 60 69 . . . 5 . . . . 84 . 86 . . . . 75 . Volleys Fired 553 | 5 51 2 44 5 18 48 9 51 3 . . 1 6 81 18 111 22 8 51 19 Largest 3 | 2 2 2 2 2 2 2 1 2 1 . . 1 2 2 3 3 3 3 3 2 Hottest 265 | 70 70 70 140 140 140 46 39 50 39 . . 25 50 138 96 225 147 146 156 265 Shots Fired 1021 | 10 102 4 84 10 35 95 9 98 3 . . 2 12 105 50 204 53 17 94 34 Gun 587 | 10 102 4 84 10 21 95 . 98 . . . 2 12 63 16 34 . 1 1 34 Cannon 379 | . . . . . 14 . . . . . . . . 18 34 156 53 16 88 . Launcher 12 | . . . . . . . 9 . 3 . . . . . . . . . . . Special 43 | . . . . . . . . . . . . . . 24 . 14 . . 5 . Kinetic 743 | 5 51 2 23 . 2 95 . 98 . . . 2 12 63 50 184 45 16 79 16 Thermal 183 | 5 51 2 61 10 19 . . . . . . . . . . 6 . 1 10 18 Explosive 12 | . . . . . . . 9 . 3 . . . . . . . . . . . Electromagnetic 40 | . . . . . 14 . . . . . . . . 18 . . 8 . . . Robot Hit Streak 20 | 2 7 5 15 5 9 9 2 8 3 . . . 6 20 10 15 4 5 8 6 Robot Miss Streak 6 | 1 4 . 5 6 4 3 2 3 . . . . 2 3 2 4 4 1 3 4 Penetration Max 1 | . . . . . . . . . . . . . . . 1 1 . . . . Secondary Targets 6 | . . . 3 . . 1 . 1 . . . . 1 . . . . . . . Max Gunslinging Chain 1 | . . . 1 . . 1 . 1 . . . . 1 . . . . . . . Shots Hit Robots 624 | 6 64 3 61 8 26 77 4 64 3 . . . 11 67 29 88 29 13 47 24 Core Hits 322 | 2 31 2 34 10 25 28 6 30 3 . . . 4 20 13 44 12 9 35 14 Critical Kills 6 | . . . . . . 1 . 3 . . . . . . . 1 . . . 1 Critical Parts Destroyed 10 | . . . . . . . . 3 . . . . 2 2 . 2 . . . 1 Critical Strikes 28 | . 1 . . . . 1 . 6 . . . . 2 2 1 7 1 2 3 2 Burn 1 | . 1 . . . . . . . . . . . . . . . . . . . Destroy 6 | . . . . . . 1 . 2 . . . . . . . 3 . . . . Blast 11 | . . . . . . . . . . . . . . . 1 4 1 2 3 . Smash 10 | . . . . . . . . 4 . . . . 2 2 . . . . . 2 Melee Attacks 78 | . . . . . 1 3 . 13 3 7 . 8 23 9 . . . . . 11 Thermal 2 | . . . . . . . . . . . . . . . . . . . . 2 Impact 72 | . . . . . . . . 13 3 7 . 8 23 9 . . . . . 9 Slashing 4 | . . . . . 1 3 . . . . . . . . . . . . . . Piercing . | . . . . . . . . . . . . . . . . . . . . . Sneak Attacks 10 | . . . . . . 1 . 4 . . . . 3 1 . . . . . 1 Combat Hostiles 1 | . . . . . . . . . . . . . . 1 . . . . . . Follow-up Attacks . | . . . . . . . . . . . . . . . . . . . . . Damage Inflicted 18390 | 84 836 38 1061 134 461 1249 592 1733 315 . . . 435 1189 961 3494 1221 572 2946 1069 Guns 6436 | 84 836 38 1061 134 217 1119 . 996 . . . . 119 590 249 379 . 34 22 558 Cannons 8232 | . . . . . 199 . . . . . . . . 409 712 3115 1221 538 2038 . Explosions 2345 | . . . . . 45 . 592 96 315 . . . . 82 . . . . 886 329 Melee 1377 | . . . . . . 130 . 641 . . . . 316 108 . . . . . 182 Ramming . | . . . . . . . . . . . . . . . . . . . . . Kinetic 11547 | 21 444 14 221 . . 1119 . 996 . . . . 119 590 961 3494 1059 538 1741 230 Thermal 2952 | 63 392 24 840 134 262 . . 96 . . . . . 82 . . . 34 368 657 Explosive 907 | . . . . . . . 592 . 315 . . . . . . . . . . . Electromagnetic 1607 | . . . . . 199 . . . . . . . . 409 . . 162 . 837 . Impact 1247 | . . . . . . . . 641 . . . . 316 108 . . . . . 182 Slashing 130 | . . . . . . 130 . . . . . . . . . . . . . . Piercing . | . . . . . . . . . . . . . . . . . . . . . Highest Corruption 23 | . . . . . . . 9 1 1 1 1 1 . . . 3 3 3 7 23 Average Corruption 2 | . . . . . . . 9 1 1 1 1 1 . . . 3 3 3 3 10 Corruption Purged . | . . . . . . . . . . . . . . . . . . . . . Corruption Blocked . | . . . . . . . . . . . . . . . . . . . . . Effects 59 | . . . . . . . 4 5 2 3 1 3 . . . 13 4 15 9 . Message Errors 14 | . . . . . . . 1 1 . 1 . 2 . . . 2 . 6 1 . Matter Fused 15 | . . . . . . . 2 1 . 2 1 . . . . 3 2 2 2 . Heat Flow Errors 6 | . . . . . . . . . 1 . . . . . . 2 1 1 1 . Energy Discharges 7 | . . . . . . . 1 . . . . . . . . 2 . 2 2 . Parts Rejected 2 | . . . . . . . . 1 . . . . . . . . . . 1 . Data Loss (minor) 9 | . . . . . . . . 2 1 . . . . . . 3 . 2 1 . Data Loss (major) 2 | . . . . . . . . . . . . . . . . . . 2 . . Misfires 3 | . . . . . . . . . . . . 1 . . . 1 1 . . . Weapon Failures 1 | . . . . . . . . . . . . . . . . . . . 1 . Overload Shots 13 | . . . . . . . . . . . . . . . . 1 . . . 12 Overflow Damage 1097 | . . . . . . . 57 395 9 . . . 261 108 18 54 . . 53 142 Projectiles 86 | . . . . . . . . . . . . . . . 18 54 . . 14 . Explosions 230 | . . . . . . . 57 47 9 . . . . . . . . . 39 78 Melee 781 | . . . . . . . . 348 . . . . 261 108 . . . . . 64 Knockbacks 25 | . . . . . . . . 2 . . . . 1 1 7 5 2 2 5 . Impact 4 | . . . . . . . . 2 . . . . 1 1 . . . . . . Kinetic 20 | . . . . . . . . . . . . . . . 6 5 2 2 5 . Secondary 1 | . . . . . . . . . . . . . . . 1 . . . . . Self-Inflicted Damage 592 | . . . . . . . 41 77 . . . . . 63 . . . . 134 277 Shots 8 | . . . . . . . 1 1 . . . . . 1 . . . . 2 3 Rammed . | . . . . . . . . . . . . . . . . . . . . . Targets Rammed . | . . . . . . . . . . . . . . . . . . . . . Kicked . | . . . . . . . . . . . . . . . . . . . . . Crushed . | . . . . . . . . . . . . . . . . . . . . . Highest Temperature 890 | 45 341 15 398 72 59 26 . 279 254 . . 23 10 114 85 278 275 224 307 890 Average Temperature 96 | 23 92 10 120 37 24 10 . 58 125 . . 12 9 25 30 50 127 85 85 307 Received Heat Transfer 1923 | . 330 9 240 54 234 297 . 188 9 . . . 45 147 . 18 27 . 108 217 Effects 31 | . . . 6 . . . . . . . . . . . . . . . 4 21 Shutdowns 5 | . . . 2 . . . . . . . . . . . . . . . . 3 Energy Bleed 4 | . . . . . . . . . . . . . . . . . . . . 4 Interference 9 | . . . 4 . . . . . . . . . . . . . . . 3 2 Matter Decay 4 | . . . . . . . . . . . . . . . . . . . 1 3 Short Circuit 3 | . . . . . . . . . . . . . . . . . . . . 3 Damage (major) 5 | . . . . . . . . . . . . . . . . . . . . 5 Damage (core) 1 | . . . . . . . . . . . . . . . . . . . . 1 Siege Activations . | . . . . . . . . . . . . . . . . . . . . . Martial Activations . | . . . . . . . . . . . . . . . . . . . . . Shielding Activations . | . . . . . . . . . . . . . . . . . . . . . Robots Disrupted 1 | . . . . . . . . . . . . . . . . . . . 1 . Combat Hostiles 1 | . . . . . . . . . . . . . . . . . . . 1 . Robots Corrupted 12 | . . . . . . . . 3 . . . . 3 3 . . . . 3 . Combat Hostiles 6 | . . . . . . . . . . . . . . 3 . . . . 3 . Parts Fried 27 | . . . . . . . . 9 . . . . 4 10 . . . . 4 . Impact Corruptions 20 | . . . . . . . . 10 . . . . 5 3 . . . . . 2 Robots Melted 1 | . . 1 . . . . . . . . . . . . . . . . . . Combat Hostiles 1 | . . 1 . . . . . . . . . . . . . . . . . . Parts Melted 1 | . . . . . . . . . . . . . . 1 . . . . . . Heat Transferred 4289 | 185 1221 74 1371 196 320 . . 100 . . . . . 100 . . . 37 87 598 Parts Sabotaged 3 | . . . . . . . . . . . . . . . . . . . . 3 Parts Stolen . | . . . . . . . . . . . . . . . . . . . . . Parts Stripped . | . . . . . . . . . . . . . . . . . . . . . Power Chain Reactions 5 | . . . . . 1 . . . . . . . . 2 . . . . 2 . Alert | -11 -10 -10 -9 -8 -8 -8 -8 -7 -7 -7 -7 -6 -6 -6 -5 -5 -5 -5 -5 -4 ------- Run | Yrd Mat Min Mat Mat Gar Mat Gar Fac Low Low Dat Pro Fac Gar Fac Ext Cet Arc Hub Fac Maximum Alert Level 4 | . . . . . 2 1 1 1 . . . . . 3 2 2 2 1 4 2 Low Security (%) 49 | 100 100 100 100 100 8 32 40 40 . . . . 100 31 13 56 . 57 20 . Level 1 28 | . . . . . 64 67 59 59 . . . . . 12 . 24 71 42 21 . Level 2 19 | . . . . . 27 . . . . . . . . 18 86 18 28 . 54 100 Level 3 2 | . . . . . . . . . . . . . . 37 . . . . . . Level 4 . | . . . . . . . . . . . . . . . . . . . 2 . Level 5 . | . . . . . . . . . . . . . . . . . . . . . High Security . | . . . . . . . . . . . . . . . . . . . . . Max Security . | . . . . . . . . . . . . . . . . . . . . . Peak Influence 1232 | 5 107 34 72 54 605 297 252 272 . . . . 123 929 557 455 441 351 1232 689 Initial 593 | . . 31 . 18 15 294 9 126 . . . . . 80 487 79 220 152 6 593 Average 232 | . 56 2 24 30 347 188 168 184 . . . . 31 516 453 204 330 176 411 609 Influence Increases 8510 | 10 333 59 291 66 670 331 293 650 205 . . . 270 1059 245 1259 431 209 1766 363 Destroy 0b10 Robot/C 3100 | . 200 40 200 40 120 180 120 220 60 . . . 40 480 60 560 200 80 440 60 Destroy 0b10 Robot/NC 395 | 10 25 5 30 . . 20 . 55 . . . . 20 5 35 70 . . 90 30 Destroy Leader 532 | . 48 10 58 10 . 52 20 36 10 . . . 16 50 8 62 10 . 120 22 Allied During Kill 1070 | . . 4 . . . . . . . . . . . 155 . 357 160 80 314 . Successful Hack 363 | . 30 . . 16 . 34 14 72 . . . . 60 12 26 7 20 . 41 31 Disable Machine 720 | . . . . . . . 15 45 . . . . . 30 60 60 . 45 390 75 Anti-Garrison Action 700 | . . . . . 450 . 50 . . . . . . 200 . . . . . . Destroy Structure 685 | . . . 3 . 10 . 44 42 . . . . 14 22 26 98 26 4 326 70 Partial Spotted 195 | . . . . . . . . 60 . . . . 15 60 15 15 . . 15 15 Lose Combat Pursuer 750 | . 30 . . . 90 45 30 120 135 . . . 105 45 15 30 15 . 30 60 Influence Decreases 7990 | 10 252 140 246 87 89 922 65 640 224 145 88 . 155 245 1012 1027 444 571 573 1055 Entered New Map 2340 | . . 50 . 27 9 311 5 116 94 45 88 . . 35 442 83 174 229 13 619 Time Decay 3354 | 10 232 64 236 60 . 301 . 404 130 100 . . 135 . 270 494 160 342 170 246 Lost Part 620 | . 20 . 10 . 80 10 60 100 . . . . 20 30 . 10 10 . 80 190 Lost Ally 626 | . . 26 . . . . . 20 . . . . . 180 . 140 100 . 160 . Purge Threat 1050 | . . . . . . 300 . . . . . . . . 300 300 . . 150 . Squads Dispatched 31 | . 1 . 1 . . 3 . 4 . . . . 4 . 2 1 1 . 9 5 Investigation 4 | . . . . . . . . 2 . . . . . . 1 . 1 . . . Extermination 5 | . . . . . . . . 1 . . . . . . 1 . . . 1 2 Reinforcement 20 | . 1 . 1 . . 2 . 1 . . . . 4 . . 1 . . 8 2 Assault 1 | . . . . . . . . . . . . . . . . . . . . 1 Garrison 1 | . . . . . . 1 . . . . . . . . . . . . . . Intercept . | . . . . . . . . . . . . . . . . . . . . . Searches Triggered . | . . . . . . . . . . . . . . . . . . . . . Data Miner Redirects 1 | . . . . . . . . . . . . . . . . . . . . 1 Construction Impeded 3 | . . . . . . . . . . . . . . . . 1 . . 1 1 Haulers Reinforced 4 | . . . . . . . . . . . . . 2 . . . . . 2 . Active Scanning Responses . | . . . . . . . . . . . . . . . . . . . . . Cargo Convoy Interrupts . | . . . . . . . . . . . . . . . . . . . . . Stealth | -11 -10 -10 -9 -8 -8 -8 -8 -7 -7 -7 -7 -6 -6 -6 -5 -5 -5 -5 -5 -4 --------- Run | Yrd Mat Min Mat Mat Gar Mat Gar Fac Low Low Dat Pro Fac Gar Fac Ext Cet Arc Hub Fac Distress Signals 16 | . 2 . 4 . . 2 . 1 . . . . 1 2 . 2 . . 2 . Communications Jammed . | . . . . . . . . . . . . . . . . . . . . . Distress Signals . | . . . . . . . . . . . . . . . . . . . . . Times Spotted 308 | . 22 2 18 4 19 18 6 30 10 . . . 18 36 7 36 14 7 38 23 Peak Tracking Total 10 | . 8 2 3 2 8 7 4 6 5 . . . 9 4 3 7 5 1 9 10 Tactical Retreats 30 | . 1 . . . 2 3 1 5 3 . . . 4 3 1 2 1 . 2 2 Traps | -11 -10 -10 -9 -8 -8 -8 -8 -7 -7 -7 -7 -6 -6 -6 -5 -5 -5 -5 -5 -4 ------- Run | Yrd Mat Min Mat Mat Gar Mat Gar Fac Low Low Dat Pro Fac Gar Fac Ext Cet Arc Hub Fac Traps Triggered 20 | . . . . . . . 1 3 . . . . . 12 1 2 . . 1 . Indirectly . | . . . . . . . . . . . . . . . . . . . . . Trap Hack Attempts . | . . . . . . . . . . . . . . . . . . . . . Triggered . | . . . . . . . . . . . . . . . . . . . . . Disarmed . | . . . . . . . . . . . . . . . . . . . . . Reprogrammed . | . . . . . . . . . . . . . . . . . . . . . Reused . | . . . . . . . . . . . . . . . . . . . . . Traps Extracted . | . . . . . . . . . . . . . . . . . . . . . Installed . | . . . . . . . . . . . . . . . . . . . . . Triggered . | . . . . . . . . . . . . . . . . . . . . . Machines | -11 -10 -10 -9 -8 -8 -8 -8 -7 -7 -7 -7 -6 -6 -6 -5 -5 -5 -5 -5 -4 ---------- Run | Yrd Mat Min Mat Mat Gar Mat Gar Fac Low Low Dat Pro Fac Gar Fac Ext Cet Arc Hub Fac Machines Disabled 60 | . . . . . 1 . 2 3 . . . . . 6 4 10 . 3 26 5 Max in Single Turn 23 | . . . . . 1 . 1 1 . . . . . 2 2 1 . 1 23 5 Garrison Access 5 | . . . . . . . . 2 . . . . 1 . 1 . . . . 1 Garrison Relay 6 | . . . . . 1 . 1 . . . . . . 4 . . . . . . Phase Generator 1 | . . . . . 1 . . . . . . . . . . . . . . . Network Hub 1 | . . . . . . . . . . . . . . . . . . . 1 . Machines Repaired . | . . . . . . . . . . . . . . . . . . . . . Machines Dismantled . | . . . . . . . . . . . . . . . . . . . . . Machines Sabotaged . | . . . . . . . . . . . . . . . . . . . . . Overloaded Fab Kills . | . . . . . . . . . . . . . . . . . . . . . Hacking | -11 -10 -10 -9 -8 -8 -8 -8 -7 -7 -7 -7 -6 -6 -6 -5 -5 -5 -5 -5 -4 --------- Run | Yrd Mat Min Mat Mat Gar Mat Gar Fac Low Low Dat Pro Fac Gar Fac Ext Cet Arc Hub Fac Machines Accessed 71 | . 4 . 1 2 4 6 1 14 1 . 4 . 8 1 8 5 3 . 3 6 Terminals 44 | . 4 . 1 . 4 4 1 8 . . . . 4 1 5 3 3 . 3 3 Fabricators 1 | . . . . . . . . 1 . . . . . . . . . . . . Repair Stations 4 | . . . . . . . . 1 . . . . . . 1 1 . . . 1 Recycling Units 8 | . . . . 1 . 1 . 2 . . . . 1 . 1 1 . . . 1 Scanalyzers 1 | . . . . . . . . . . . . . 1 . . . . . . . Garrison Access 8 | . . . . 1 . 1 . 2 . . . . 2 . 1 . . . . 1 Total Hacks 269 | . 16 . 2 5 13 30 1 37 1 . 33 . 33 1 29 15 17 . 16 20 Successful 159 | . 11 . 1 3 3 15 1 23 1 . 33 . 21 1 16 7 7 . 10 6 Failed 110 | . 5 . 1 2 10 15 . 14 . . . . 12 . 13 8 10 . 6 14 Catastrophic 14 | . . . . . 1 2 . 3 . . . . 3 . 1 2 . . 1 1 Database Lockouts . | . . . . . . . . . . . . . . . . . . . . . Manual 104 | . 13 . 2 2 . 20 . 21 . . . . 15 . 13 7 1 . 7 3 Terminals 174 | . 16 . 2 . 13 24 1 24 . . . . 16 1 20 11 17 . 16 13 Fabricators 2 | . . . . . . . . 2 . . . . . . . . . . . . Repair Stations 12 | . . . . . . . . 2 . . . . . . 4 2 . . . 4 Recycling Units 28 | . . . . 3 . 5 . 7 . . . . 6 . 3 2 . . . 2 Scanalyzers 7 | . . . . . . . . . . . . . 7 . . . . . . . Garrison Access 12 | . . . . 2 . 1 . 2 . . . . 4 . 2 . . . . 1 Terminal Hacks 78 | . 6 . . . 3 7 1 2 1 . 33 . 2 1 4 4 7 . 5 2 Record 17 | . . . . . . . . . . . 11 . . . . . 6 . . . Part Schematic 14 | . . . . . . . . . . . 12 . 1 . . . . . . 1 Robot Schematic 7 | . . . . . . . . . . . 7 . . . . . . . . . Robot Analysis 3 | . . . . . . . . 1 . . . . 1 . . 1 . . . . Prototype ID Bank 9 | . 3 . . . . 1 . 1 . . 3 . . . . . . . 1 . Open Door 3 | . . . . . 1 . . . 1 . . . . . . . 1 . . . Level Access Points 1 | . . . . . . 1 . . . . . . . . . . . . . . Branch Access Points 1 | . 1 . . . . . . . . . . . . . . . . . . . Emergency Access Points 3 | . . . . . 1 . 1 . . . . . . 1 . . . . . . Machine Index 1 | . . . . . . 1 . . . . . . . . . . . . . . Terminal Index 1 | . . . . . . 1 . . . . . . . . . . . . . . Fabricator Index 1 | . . . . . . . . . . . . . . . . . . . . 1 Alert Level 1 | . . . . . . . . . . . . . . . . 1 . . . . Unreport Threat 7 | . . . . . . 2 . . . . . . . . 2 2 . . 1 . Locate Traps 3 | . 2 . . . . . . . . . . . . . 1 . . . . . Hauler Manifests 2 | . . . . . . . . . . . . . . . 1 . . . 1 . Registered Prototypes 1 | . . . . . . . . . . . . . . . . . . . 1 . Zone Layout 2 | . . . . . . 1 . . . . . . . . . . . . 1 . Garrison Registry 1 | . . . . . 1 . . . . . . . . . . . . . . . Fabricator Hacks 1 | . . . . . . . . 1 . . . . . . . . . . . . Build 1 | . . . . . . . . 1 . . . . . . . . . . . . Repair Station Hacks 9 | . . . . . . . . 2 . . . . . . 4 2 . . . 1 Scan Component 5 | . . . . . . . . 1 . . . . . . 2 1 . . . 1 Repair 4 | . . . . . . . . 1 . . . . . . 2 1 . . . . Recycling Unit Hacks 6 | . . . . 1 . 1 . 2 . . . . 1 . 1 . . . . . Retrieve Components 6 | . . . . 1 . 1 . 2 . . . . 1 . 1 . . . . . Scanalyzer 6 | . . . . . . . . . . . . . 6 . . . . . . . Insert Component 3 | . . . . . . . . . . . . . 3 . . . . . . . Analyze 3 | . . . . . . . . . . . . . 3 . . . . . . . Garrison Access Hacks 11 | . . . . 1 . 1 . 2 . . . . 4 . 2 . . . . 1 Unlock Access 3 | . . . . 1 . 1 . . . . . . 1 . . . . . . . Seal Access 5 | . . . . . . . . 2 . . . . 1 . 1 . . . . 1 Coupler Status 3 | . . . . . . . . . . . . . 2 . 1 . . . . . Unauthorized Hacks 48 | . 5 . 1 1 . 6 . 14 . . . . 8 . 5 1 . . 5 2 Terminals 36 | . 5 . 1 . . 4 . 9 . . . . 4 . 5 1 . . 5 2 Track 4 | . . . . . . . . 1 . . . . 1 . . . . . 2 . Assimilate 3 | . . . . . . . . 2 . . . . . . 1 . . . . . Botnet 25 | . 4 . 1 . . 4 . 5 . . . . 3 . 3 1 . . 2 2 Operators 4 | . 1 . . . . . . 1 . . . . . . 1 . . . 1 . Fabricators . | . . . . . . . . . . . . . . . . . . . . . Repair Stations . | . . . . . . . . . . . . . . . . . . . . . Recycling Units 12 | . . . . 1 . 2 . 5 . . . . 4 . . . . . . . Monitor 2 | . . . . . . . . 1 . . . . 1 . . . . . . . Reject 3 | . . . . . . 1 . 1 . . . . 1 . . . . . . . Recyclers 2 | . . . . . . . . 1 . . . . 1 . . . . . . . Mask 5 | . . . . 1 . 1 . 2 . . . . 1 . . . . . . . Scanalyzers . | . . . . . . . . . . . . . . . . . . . . . Garrison Access . | . . . . . . . . . . . . . . . . . . . . . Data Cores Recovered 3 | . . . . . . . . . . . . . . . 2 . . . 1 . Used 3 | . . . . . . . . . . . . . . . 2 . . . 1 . Hacking Detections 52 | . 4 . 1 2 4 4 . 9 . . . . 6 1 7 4 2 . 3 5 Full Trace Events 8 | . . . . . 4 . . 2 . . . . . . 1 . 1 . . . Feedback Events 1 | . . . . . . . . 1 . . . . . . . . . . . . Corruption 1 | . . . . . . . . 1 . . . . . . . . . . . . Feedback Blocked . | . . . . . . . . . . . . . . . . . . . . . Robot Schematics Acquired 7 | . . . . . . . . . . . 7 . . . . . . . . . Robots Built 1 | . . . . . . . . 1 . . . . . . . . . . . . Authchips . | . . . . . . . . . . . . . . . . . . . . . Time 116 | . . . . . . . . 116 . . . . . . . . . . . . Total Robot Build Rating 3 | . . . . . . . . 3 . . . . . . . . . . . . Part Schematics Acquired 17 | . . . . . . . . . . . 12 . 4 . . . . . . 1 Parts Built . | . . . . . . . . . . . . . . . . . . . . . Authchips . | . . . . . . . . . . . . . . . . . . . . . Time . | . . . . . . . . . . . . . . . . . . . . . Total Part Build Rating . | . . . . . . . . . . . . . . . . . . . . . Parts Repaired 4 | . . . . . . . . 1 . . . . . . 2 1 . . . . Time 215 | . . . . . . . . 70 . . . . . . 65 80 . . . . Parts Recycled . | . . . . . . . . . . . . . . . . . . . . . Recycled Matter . | . . . . . . . . . . . . . . . . . . . . . Retrieved Matter . | . . . . . . . . . . . . . . . . . . . . . Retrieved Components 16 | . . . . 3 . 9 . 2 . . . . 1 . 1 . . . . . Parts Scanalyzed 3 | . . . . . . . . . . . . . 3 . . . . . . . Part Schematics Acquired 3 | . . . . . . . . . . . . . 3 . . . . . . . Parts Damaged . | . . . . . . . . . . . . . . . . . . . . . Bothacking | -11 -10 -10 -9 -8 -8 -8 -8 -7 -7 -7 -7 -6 -6 -6 -5 -5 -5 -5 -5 -4 ------------ Run | Yrd Mat Min Mat Mat Gar Mat Gar Fac Low Low Dat Pro Fac Gar Fac Ext Cet Arc Hub Fac Used RIF Installer 4 | . . . . . 2 . 1 . . . . . . 1 . . . . . . Watcher Feeds 1 | . . . . . 1 . . . . . . . . . . . . . . . Structural Interface 1 | . . . . . . . . . . . . . . 1 . . . . . . Program Shield 1 | . . . . . . . 1 . . . . . . . . . . . . . Robots Hacked 19 | . . . . . . . . . . . . . . 14 . 3 . . 2 . Non-combat . | . . . . . . . . . . . . . . . . . . . . . Combat 19 | . . . . . . . . . . . . . . 14 . 3 . . 2 . Robot Hacks Applied 20 | . . . . . . . . . . . . . . 15 . 3 . . 2 . parse_system 1 | . . . . . . . . . . . . . . 1 . . . . . . spike_heat 1 | . . . . . . . . . . . . . . 1 . . . . . . reboot_system 6 | . . . . . . . . . . . . . . 5 . 1 . . . . overwrite_iff 12 | . . . . . . . . . . . . . . 8 . 2 . . 2 . Relay Couplers Released 25 | . . . . . 3 . 5 . . . . . . 17 . . . . . . Machine Destruction 25 | . . . . . 3 . 5 . . . . . . 17 . . . . . . Attached 7 | . . . . . 1 . . . . . . . . 4 1 1 . . . . Fabnet Peak Effective % . | . . . . . . . . . . . . . . . . . . . . . Robots Rewired 11 | . . . . . . . . . . . . . . 3 . 8 . . . . Allies Hacked . | . . . . . . . . . . . . . . . . . . . . . Hacks Repelled . | . . . . . . . . . . . . . . . . . . . . . Allies | -11 -10 -10 -9 -8 -8 -8 -8 -7 -7 -7 -7 -6 -6 -6 -5 -5 -5 -5 -5 -4 -------- Run | Yrd Mat Min Mat Mat Gar Mat Gar Fac Low Low Dat Pro Fac Gar Fac Ext Cet Arc Hub Fac Total Allies 43 | . . 2 . . . . . 3 . . . . . 13 1 17 5 . 2 . Largest Group 10 | . . 2 . . . . . 1 . . . . . 5 1 10 10 7 7 . Highest-Rated Group 641 | . . 46 . . . . . 26 . . . . . 199 10 426 641 641 521 . Highest-Rated Ally 159 | . . 31 . . . . . 26 . . . . . 41 10 159 159 144 96 . Total Orders 1 | . . . . . . . . . . . . . . . . 1 . . . . STAY 1 | . . . . . . . . . . . . . . . . 1 . . . . Ally Attacks 341 | . . 8 . . . . . . . . . . . 82 . 97 70 21 63 . Total Damage 9424 | . . 124 . . . . . . . . . . . 2335 . 2373 1568 637 2387 . Kills 60 | . . 1 . . . . . . . . . . . 12 . 20 8 4 15 . Allies Corrupted 2 | . . . . . . . . . . . . . . . . 1 . . 1 . Allies Melted . | . . . . . . . . . . . . . . . . . . . . . Intel | -11 -10 -10 -9 -8 -8 -8 -8 -7 -7 -7 -7 -6 -6 -6 -5 -5 -5 -5 -5 -4 ------- Run | Yrd Mat Min Mat Mat Gar Mat Gar Fac Low Low Dat Pro Fac Gar Fac Ext Cet Arc Hub Fac Active Infowar (turns) 5440 | 15 571 868 46 . . . . 507 274 200 37 322 328 66 579 983 2 . 192 450 Optics 36 | . . . . . . . . . . . . . . . . . . . . 36 Sensors 3932 | . . . . . . . . 507 274 200 37 322 328 61 579 983 . . 192 449 Terrain 1500 | 15 571 868 46 . . . . . . . . . . . . . . . . . Traps 153 | . . . . . . . . . . . . . . . . . . . . 153 Cloaking 1159 | . . . . . . . . . . . . . . 5 578 574 2 . . . Robot Analysis Total 3 | . . . . . . . . 1 . . . . 1 . . 1 . . . . Derelict Logs Recovered 4 | . . 2 . . . . . . . 1 . 1 . . . . . . . . Drone Launches . | . . . . . . . . . . . . . . . . . . . . . Drone Recoveries . | . . . . . . . . . . . . . . . . . . . . . Exploration | -11 -10 -10 -9 -8 -8 -8 -8 -7 -7 -7 -7 -6 -6 -6 -5 -5 -5 -5 -5 -4 ------------- Run | Yrd Mat Min Mat Mat Gar Mat Gar Fac Low Low Dat Pro Fac Gar Fac Ext Cet Arc Hub Fac Turns Passed 10955 | 87 571 868 693 136 933 720 224 964 276 200 37 322 328 722 588 1308 333 772 348 525 Spaces Moved 11926 | 43 242 328 385 86 603 400 163 1527 571 437 91 640 553 1194 1170 1986 369 134 375 629 Core 16 | 11 . . . . . . . . . . . . . . . . . . . 5 Treads . | . . . . . . . . . . . . . . . . . . . . . Legs 2162 | 32 242 328 385 86 603 400 86 . . . . . . . . . . . . . Wheels . | . . . . . . . . . . . . . . . . . . . . . Hover 9748 | . . . . . . . 77 1527 571 437 91 640 553 1194 1170 1986 369 134 375 624 Flight . | . . . . . . . . . . . . . . . . . . . . . Fastest Speed 33 | 50 120 190 120 120 120 120 48 44 40 40 40 40 35 33 36 36 42 42 42 50 Average Speed 58 | 138 141 190 121 120 124 122 106 44 42 40 40 40 38 34 36 38 63 42 43 59 Slowest Speed 250 | 250 190 190 190 120 126 125 190 108 44 40 40 40 40 38 36 42 105 42 55 150 Overloaded Moves . | . . . . . . . . . . . . . . . . . . . . . Propulsion Burnouts . | . . . . . . . . . . . . . . . . . . . . . Robots Hopped . | . . . . . . . . . . . . . . . . . . . . . Potential Cave-ins 7 | . . . . . . . 3 . . . . . 4 . . . . . . . Cave-ins Triggered 1 | . . . . . . . 1 . . . . . . . . . . . . . Exploration Rate (%) 52 | 3 42 64 49 9 81 44 33 39 59 52 75 80 17 85 23 98 95 96 49 12 Regions Visited 20 Branch Regions 9 Pre-discovered Areas 1 | . . . . . . . . . . . 1 . . . . . . . . . Known Exits Taken 15 | . 1 . 1 1 . 1 . 1 1 1 1 1 1 . 1 1 1 1 1 . Unknown Exits Taken 2 | 1 . 1 . . . . . . . . . . . . . . . . . . Scrap Searched 13 | . . 1 . . . . . . 2 8 . 2 . . . . . . . . Spaces Dug 54 | . . . . . . . . 3 3 7 . 8 17 4 1 7 . . 1 3 Terrain Destroyed 567 | . . . . . . . 81 53 47 7 . 8 17 8 12 47 12 . 214 61 Melee 42 | . . . . . . . . 3 3 7 . 8 17 4 . . . . . . Projectile 102 | . . . . . . . . . . . . . . . 12 47 12 . 25 6 AOE 423 | . . . . . . . 81 50 44 . . . . 4 . . . . 189 55 Terrain Rammed . | . . . . . . . . . . . . . . . . . . . . . Walls Destroyed . | . . . . . . . . . . . . . . . . . . . . . Machines Disabled . | . . . . . . . . . . . . . . . . . . . . . Actions | -11 -10 -10 -9 -8 -8 -8 -8 -7 -7 -7 -7 -6 -6 -6 -5 -5 -5 -5 -5 -4 --------- Run | Yrd Mat Min Mat Mat Gar Mat Gar Fac Low Low Dat Pro Fac Gar Fac Ext Cet Arc Hub Fac Total 14796 | 56 369 571 526 112 748 549 201 1718 591 448 90 688 612 1409 1296 2352 417 832 478 733 Wait 1823 | . 50 232 64 5 112 70 20 54 6 . . 40 5 60 85 217 23 691 36 53 Move 11904 | 42 241 327 384 85 601 400 160 1526 570 436 90 639 553 1192 1169 1985 368 133 374 629 Hop . | . . . . . . . . . . . . . . . . . . . . . Pick Up 110 | 1 13 5 12 8 5 6 . 24 2 3 . . 7 7 7 5 . . 2 3 Fast Attach 42 | 7 . . . . 3 1 . 12 1 . . . 1 4 1 . 1 . 3 8 Attach 57 | . 2 . 10 . 7 1 7 12 1 . . . 3 3 3 2 . . 2 4 Detach 3 | . . . . . . . 2 . . . . . . . . . . . 1 . Swap 106 | 1 7 1 6 1 1 10 2 15 3 . . . 7 15 8 14 3 . 6 6 Drop 73 | . 5 4 6 8 . 10 . 11 2 2 . . 7 5 5 5 . . 3 . Fire 553 | 5 51 2 44 5 18 48 9 51 3 . . 1 6 81 18 111 22 8 51 19 Melee 78 | . . . . . 1 3 . 13 3 7 . 8 23 9 . . . . . 11 Ram . | . . . . . . . . . . . . . . . . . . . . . Kick . | . . . . . . . . . . . . . . . . . . . . . Crush . | . . . . . . . . . . . . . . . . . . . . . Escape Stasis 47 | . . . . . . . 1 . . . . . . 33 . 13 . . . . Rewire . | . . . . . . . . . . . . . . . . . . . . . Trap . | . . . . . . . . . . . . . . . . . . . . . Miscellaneous . | . . . . . . . . . . . . . . . . . . . . . Route ------- -11/Scrapyard -10/Materials -10/Mines -9/Materials (discovered 4 exits: *Mat x2 / [*Min x2]) -8/Materials -8/Garrison (discovered 4 exits: *Mat x4) -8/Materials (discovered 4 exits: Fac x3 / Gar) -8/Garrison -7/Factory (discovered 2 exits: *Fac / *Low) -7/Lower Caves -7/Lower Caves (discovered 2 exits: *Fac / *Dat) -7/Data Miner -6/Proximity Caves -6/Factory -6/Garrison (discovered 3 exits: *Fac x3) -5/Factory (discovered 3 exits: *Fac / *Upp / *Ext) -5/Extension (discovered 2 exits: *Fac / *Cet) -5/Cetus (discovered 3 exits: *Fac x2 / *Arc) -5/Archives (discovered 3 exits: *Fac / *Hub x2) -5/Hub_04(d) (discovered 2 exits: *Fac x2) -4/Factory History --------- Turn | Location | Event 29 | -11/Scrapyard | Discovered new exit (range 16) 88 | -11/Scrapyard | Entered Materials 352 | -10/Materials | Build established: Mutant 614 | -10/Materials | Discovered new exit (range 10) 619 | -10/Materials | Identified exit to Mines 659 | -10/Materials | Entered Mines 668 | -10/Mines | Met a Derelict bent on vengeance 725 | -10/Mines | Assembled infested the area 735 | -10/Mines | Learned location of 1 exit from Materials 791 | -10/Mines | Learned Materials stockpile data 1503 | -10/Mines | Discovered new exit (range 14) 1527 | -10/Mines | Entered Materials 1527 | -9/Materials | Evolved 2 slots: Propulsion x2 1528 | -9/Materials | Identified exit to Materials 1555 | -9/Materials | Discovered new exit (range 10) 1621 | -9/Materials | Lost 5 parts (2p1u2w) 1778 | -9/Materials | Discovered new exit (range 9) 1845 | -9/Materials | Build established: Scavenger-Mutant 2164 | -9/Materials | Discovered exit to Materials (range 16) 2220 | -9/Materials | Entered another Materials area 2220 | -8/Materials | Evolved 2 slots: Utility x2 2321 | -8/Materials | Identified exit to Garrison 2356 | -8/Materials | Entered Garrison 2373 | -8/Garrison | Discovered new exit (range 48) 2373 | -8/Garrison | Discovered new exit (range 66) 2373 | -8/Garrison | Discovered new exit (range 74) 2373 | -8/Garrison | Discovered new exit (range 79) 2406 | -8/Garrison | Warlord forces raided the area 2438 | -8/Garrison | Phase Generator disabled 2472 | -8/Garrison | Triggered checkpoint 2472 | -8/Garrison | Triggered checkpoint 2611 | -8/Garrison | Lost 4 parts (1p2n1w) 2640 | -8/Garrison | Triggered checkpoint 2642 | -8/Garrison | Triggered checkpoint 2736 | -8/Garrison | Triggered checkpoint 2835 | -8/Garrison | Installed Relay Interface Framework 3044 | -8/Garrison | Lost 3 parts (2n1w) 3105 | -8/Garrison | Lost 5 allies 3108 | -8/Garrison | Expanded RIF knowledge: Watcher Feeds 3138 | -8/Garrison | Triggered checkpoint 3255 | -8/Garrison | Garrison Relay disabled 3289 | -8/Garrison | Entered Materials 3737 | -8/Materials | Core integrity fell below 50% 3874 | -8/Materials | Identified exit to Factory 3967 | -8/Materials | Garrison activated, responded to threat 4009 | -8/Materials | Identified exit to Garrison 4009 | -8/Materials | Entered Garrison 4090 | -8/Garrison | Triggered checkpoint 4091 | -8/Garrison | Core integrity fell below 20% 4120 | -8/Garrison | Crushed by falling debris 4149 | -8/Garrison | Expanded RIF knowledge: Program Shield 4151 | -8/Garrison | Lost 5 parts (1p2n1u1w) 4213 | -8/Garrison | Triggered checkpoint 4227 | -8/Garrison | Discovered exit to Factory (range 12) 4233 | -8/Garrison | Entered Factory 4233 | -7/Factory | Evolved 2 slots: Propulsion x1, Utility x1 4419 | -7/Factory | Build established: Mutant 4660 | -7/Factory | Fabricated M-28 Smith? 4704 | -7/Factory | Assembled infested ambush trap array 4787 | -7/Factory | Destroyed 7 combat bots 4794 | -7/Factory | Lost 7 parts (5n2w) 4874 | -7/Factory | Repaired Enh. Nuclear Core? 4922 | -7/Factory | Build established: Hacker-Mutant 5090 | -7/Factory | Discovered new exit (range 16) 5101 | -7/Factory | Identified exit to Lower Caves 5113 | -7/Factory | Discovered new exit (range 11) 5117 | -7/Factory | Identified exit to Factory 5197 | -7/Factory | Entered Lower Caves 5209 | -7/Lower Caves | Encountered a Warlord checkpoint 5265 | -7/Lower Caves | Spotted B-75 Beast 5401 | -7/Lower Caves | Found Alien Artifact 5401 | -7/Lower Caves | Identified Core Expander 5401 | -7/Lower Caves | Installed Core Expander, added new Propulsion slot 5465 | -7/Lower Caves | Discovered new exit (range 9) 5468 | -7/Lower Caves | Identified exit to Lower Caves 5473 | -7/Lower Caves | Entered another Lower Caves area 5480 | -7/Lower Caves | Discovered exit to Factory (range 9) 5598 | -7/Lower Caves | Identified exit to Data Miner 5673 | -7/Lower Caves | Entered Data Miner 5673 | -7/Data Miner | Discovered new exit (range 6) 5681 | -7/Data Miner | Met Data Miner 5695 | -7/Data Miner | Learned location of Section 7 (-3) 5695 | -7/Data Miner | Acquired the access code to Warlord's prototype stash 5700 | -7/Data Miner | Received God Mode back door access code from Data Miner 5709 | -7/Data Miner | Identified exit to Proximity Caves 5710 | -7/Data Miner | Entered Proximity Caves 5931 | -6/Proximity Caves | Spotted B-75 Beast 6032 | -6/Proximity Caves | Entered Factory 6032 | -6/Factory | Evolved 2 slots: Utility x2 6360 | -6/Factory | Identified exit to Garrison 6360 | -6/Factory | Entered Garrison 6409 | -6/Garrison | Expanded RIF knowledge: Structural Interface 6415 | -6/Garrison | Garrison Relay disabled 6420 | -6/Garrison | Triggered checkpoint 6480 | -6/Garrison | Triggered checkpoint 6523 | -6/Garrison | Lost 3 allies 6564 | -6/Garrison | Garrison Relay disabled 6640 | -6/Garrison | Rescued a captive Derelict 6641 | -6/Garrison | Rescued a captive Derelict 6650 | -6/Garrison | Triggered checkpoint 6667 | -6/Garrison | Discovered new exit (range 11) 6673 | -6/Garrison | Garrison Relay disabled 6680 | -6/Garrison | Triggered checkpoint 6737 | -6/Garrison | Garrison Relay disabled 6754 | -6/Garrison | Identified exit to Factory 6769 | -6/Garrison | Spotted B-86 Titan 6777 | -6/Garrison | Triggered checkpoint 6808 | -6/Garrison | Triggered checkpoint 6817 | -6/Garrison | Build established: Bothacker-Sprinter 6858 | -6/Garrison | Triggered checkpoint 6899 | -6/Garrison | Discovered exit to Factory (range 11) 6905 | -6/Garrison | Lost 4 allies 6924 | -6/Garrison | Triggered checkpoint 7033 | -6/Garrison | Discovered exit to Factory (range 15) 7066 | -6/Garrison | Triggered checkpoint 7082 | -6/Garrison | Entered Factory 7082 | -5/Factory | Evolved 2 slots: Power x1, Weapon x1 7156 | -5/Factory | Repaired Enh. Autogun? 7212 | -5/Factory | Repaired Enh. Nuclear Core 7286 | -5/Factory | Discovered new exit (range 9) 7288 | -5/Factory | Identified exit to Upper Caves 7292 | -5/Factory | Discovered new exit (range 14) 7297 | -5/Factory | Identified exit to Extension 7556 | -5/Factory | Build established: Hacker-Skirmisher 7579 | -5/Factory | Discovered new exit (range 26) 7670 | -5/Factory | Entered Extension 7670 | -5/Extension | Accompanied by 1 ally 7733 | -5/Extension | Spotted B-75 Beast 7829 | -5/Extension | Rescued a captive Derelict 8170 | -5/Extension | Disrupted transfer network 8245 | -5/Extension | Rescued A7 8271 | -5/Extension | Spotted B-75 Beast 8306 | -5/Extension | Allies destroyed B-75 Beast 8347 | -5/Extension | Allies destroyed B-75 Beast 8367 | -5/Extension | Rescued a captive Derelict 8371 | -5/Extension | Rescued a captive Derelict 8374 | -5/Extension | Lost 5 allies 8386 | -5/Extension | Rescued a captive Derelict 8387 | -5/Extension | Rescued a captive Derelict 8490 | -5/Extension | Repaired Cld. Aerolev Unit? 8516 | -5/Extension | Rescued a captive Derelict 8575 | -5/Extension | Discovered new exit (range 10) 8576 | -5/Extension | Discovered new exit (range 6) 8840 | -5/Extension | Identified exit to Cetus 8841 | -5/Extension | Identified exit to Factory 8978 | -5/Extension | Entered Cetus 8978 | -5/Cetus | Accompanied by 10 allies (A7) 8983 | -5/Cetus | Acquired a Cetus Manufacturing Module code from A7 8999 | -5/Cetus | Spotted Cetus Guard 8999 | -5/Cetus | Spotted Cetus Guard 9004 | -5/Cetus | Allies destroyed Cetus Guard 9006 | -5/Cetus | Spotted Cetus Guard 9006 | -5/Cetus | Spotted Cetus Guard 9016 | -5/Cetus | Allies destroyed Cetus Guard 9022 | -5/Cetus | Allies destroyed Cetus Guard 9027 | -5/Cetus | Allies destroyed Cetus Guard 9040 | -5/Cetus | Discovered exit to Factory (range 15) 9052 | -5/Cetus | Lost 5 allies 9077 | -5/Cetus | Started Cetus Manufacturing Module 9092 | -5/Cetus | Escorted A7 to Cetus Mainframe 9102 | -5/Cetus | Manufactured an Enhanced Grunt 9127 | -5/Cetus | Manufactured an Enhanced Grunt 9130 | -5/Cetus | Discovered new exit (range 16) 9145 | -5/Cetus | Discovered exit to Factory (range 27) 9149 | -5/Cetus | Spotted Cetus Guard 9149 | -5/Cetus | Spotted Cetus Guard 9152 | -5/Cetus | Manufactured an Enhanced Grunt 9160 | -5/Cetus | Allies destroyed Cetus Guard 9169 | -5/Cetus | Destroyed Cetus Guard 9177 | -5/Cetus | Manufactured an Enhanced Grunt 9179 | -5/Cetus | Spotted Cetus Guard 9179 | -5/Cetus | Spotted Cetus Guard 9184 | -5/Cetus | Allies destroyed Cetus Guard 9189 | -5/Cetus | Allies destroyed Cetus Guard 9196 | -5/Cetus | Met Revision 17 9202 | -5/Cetus | Manufactured an Enhanced Grunt 9292 | -5/Cetus | Identified exit to Archives 9311 | -5/Cetus | Entered Archives 9311 | -5/Archives | Accompanied by 7 allies (A7) 9316 | -5/Archives | Received a hacking code to weaken MAIN.C 9336 | -5/Archives | Unable to access archive contents 9347 | -5/Archives | Discovered exit to Factory (range 15) 9360 | -5/Archives | Discovered new exit (range 15) 9366 | -5/Archives | Identified exit to Hub_04(d) 9376 | -5/Archives | Discovered exit to Hub_04(d) (range 16) 9502 | -5/Archives | Build established: Commander-Tank 10083 | -5/Archives | Entered Hub_04(d) 10083 | -5/Hub_04(d) | Accompanied by 6 allies 10112 | -5/Hub_04(d) | Discovered exit to Factory (range 20) 10188 | -5/Hub_04(d) | Discovered exit to Factory (range 36) 10227 | -5/Hub_04(d) | Lost 3 allies 10418 | -5/Hub_04(d) | Lost 4 parts (1p2n1w) 10422 | -5/Hub_04(d) | Network Hub disabled 10426 | -5/Hub_04(d) | Spotted Lightning 10427 | -5/Hub_04(d) | Spotted Lightning 10427 | -5/Hub_04(d) | Spotted Lightning 10431 | -5/Hub_04(d) | Entered Factory 10431 | -4/Factory | Evolved 2 slots: Utility x2 10462 | -4/Factory | Lost 4 parts (1n1u2w) 10676 | -4/Factory | Lost 3 parts (1p2u) 10681 | -4/Factory | First assault squad dispatched 10929 | -4/Factory | System corruption reached 10% 10940 | -4/Factory | Core integrity fell below 50% 10945 | -4/Factory | Incoming assault squad redirected 10947 | -4/Factory | Build established: Mutant 10952 | -4/Factory | Core integrity fell below 20% 10956 | -4/Factory | Destroyed by G-67 Veteran with Field Laser Last Messages --------------- 10939_ System corrupted by crushing effect (+1). 10940_ Overheating: System interference. 10940_ Imp. Targeting Computer temporarily disabled. 10940_ Adv. Signal Interpreter temporarily disabled. 10942_ Cmb. Gravmag System destroyed. 10942_ K-01 Serf collects debris. 10942_ ALERT: Suspicious intruders detected, dispatching Specialist reinforcements to area. 10943_ Variable Charge Gun destroyed. 10943_ Imp. Targeting Computer destroyed. 10943_ Broken Cmb. Airjet destroyed. 10944_ Med. Storage Unit destroyed. 10945_ ALERT: Higher priority target reported, redirecting assault. 10945_ K-01 Serf collects debris. 10947_ Cmb. Gravmag System destroyed. 10950_ K-01 Serf collects debris. 10955_ M-28 Smith repairs G-67 Veteran. Map ----- +----------------------------------------------------+ | ?????????????????????????????????????????????????? | | ?????????????????????????????????????????????????? | | ?????????????????????????????????????????????????? | | ?????????????????????????????????????????????????? | | ?????????????????????????????????????????????????? | | ?????????????????????????????????????????????????? | | ?????????????????????????????????????????????????? | | ?????????????????????????????????????????????????? | | ?????????????????????????????????????????????????? | | ?????????????????????????????????????????????????? | | ????????????????????????????????????????????###### | | ????????????????????????????????????????????# | | ????????????????????????????????????????????# | | ????????????????????????????????????????????# | | ????????????????????????????????????????????# | | ????????????????????????????????????????????# " | | ????????????????????????????????????????????# " | | ????????????????????????????????????????????# " | | ????????????????????????????????????????????# | | ????????????????????????????????????????????# " | | ????????????????????????????????????????????# " | | ??????????????????????????????###########???# " | | ??????????????????????????????# # #???# | | ????????????????????????????### #########" | | ?????????????##############?#" ""## | | ?????????????# @### # | | ?????????????# # + | | ?????????????# # # | | ?????????????# b # # | | ?????????????# b # # ### | | ?????????????# b # # # | | ?????????????# g # # # | | ?????????????# # + # | | ?????????????# ! # # # | | ?????????????# g g k # # # " | | ????????????## gm ### # # " | | ????????????## ==gp[ #?# # # " | | ###+#############/######################## # | | /%" =%! % ### | | #?? | | #?? | | ### | | | | ##########+####################/########## | | ???????????????????????????# #????# """^ | | ???????????????????????????# #????# "Y" | | ???????????????????????????# #????#^ " " " | | ???????????????????????????# #????# ^ " | | ???????????????????????????# #????# " | | ???????????????????????????# #????# ^ " | +----------------------------------------------------+ Best States ------------- Heat Dissipation 70 Energy Generation 31 Energy Capacity 500 Matter Stores 672 Matter Capacity 700 Sight Range 20 Robot Scan Range 16 Terrain Scan Range 16 Terrain Scan Density 10 Cloak Strength 3 Power Amplification 20 Weapon Cycling 20 Evasion (%) 58 Targeting Accuracy 12 Core Analysis 6 Offensive Hacking 10 Defensive Hacking 20 Relay Coupler Types 3 Relay Coupler Value 60 Item Schematics ----------------- Combat Drone Bay | -7/Data Miner | Free Exp. Targeting Computer | -7/Data Miner | Free Lgt. Regenerative Plating | -7/Data Miner | Free Multireflex Exoskeleton | -7/Data Miner | Free Imp. Heavy Machine Gun | -7/Data Miner | Free Field Propulsion Drive | -7/Data Miner | Free Imp. Coolant Injector | -7/Data Miner | Free Tesla Rifle | -7/Data Miner | Free Imp. Core Shielding | -7/Data Miner | Free Mic. Fission Core | -7/Data Miner | Free Adv. System Shield | -7/Data Miner | Free Nanoactuators | -7/Data Miner | Free Smartbomb Launcher | -6/Factory | Hacked Remote Datajack | -6/Factory | Scanalyzed Adv. Terrain Scan Processor | -6/Factory | Scanalyzed EM Disruption Field | -6/Factory | Scanalyzed Lrn. Terrain Scanner | -4/Factory | Hacked Robot Schematics ------------------ S-27 Virus | -7/Data Miner | Free M-14 Sweeper | -7/Data Miner | Free A-15 Conveyor | -7/Data Miner | Free B-60 Warrior | -7/Data Miner | Free G-50 Soldier | -7/Data Miner | Free X-62 Marksman | -7/Data Miner | Free R-10 Processor | -7/Data Miner | Free Fabricated ------------ M-28 Smith | x1 | -7/Factory | Preloaded Repaired ---------- Enh. Nuclear Core | 6% | -7/Factory Enh. Autogun | 9% | -5/Factory Enh. Nuclear Core | 11% | -5/Factory Cld. Aerolev Unit | 30% | -5/Extension Alien Tech Used ----------------- Core Expander Achievements -------------- None Challenges ------------ None Game ------ Seed OpticalWeldingAutobeam Manual? 0 Play Time 03:03:25 Cumulative 296.8 hours Start 2025.06.19 @ 22:22:18 End 2025.06.20 @ 18:46:01 Sessions 3 Manual Loads 0 Difficulty Rogue Special Mode None Game No. 128 Rogue 114 Adventurer 14 Explorer 0 Win Type - Total 16 Types 13/0/1/1/0/0/0/0/1/0 Lore% 60 Gallery% 71 Achievement% 67 Wizard Run 0 Options --------- Layout 1 ASCII 0 Keyboard 0 Movement Arrows Keybinds 0 Fullscreen 1 Font 32/SmallcapsGlow Map View 50x40 Zoom Use 0% Tactical HUD 1 Map Filters NONE Filters NONE Steam 1 RUN: cefac4d3-927e-4f2e-b7b7-134b98d98d4c